[Event "Titled Tuesday Blitz September 13 Late 2022"]
[White "Ibarra Jerez, Jose Carlos"]
[Black "Bortnyk, Olexandr"]
[WhiteFideId "2226332"]
[BlackFideId "14120828"]
[WhiteElo "2627"]
[BlackElo "2723"]
[Result "0-1"]
[Round "07"]
[TimeControl "180+1"]
[Date "2022.09.13"]
[WhiteClock "0:00:04"]
[BlackClock "0:00:04"]

1. Nf3 {[%clk 0:03:00]}  Nf6 {[%clk 0:02:58]} 2. g3 {[%clk 0:03:00]}  d6 {[%clk 0:02:58]} 3. d4 {[%clk 0:03:00]}  g6 {[%clk 0:02:59]} 4. b3 {[%clk 0:03:00]}  Bg7 {[%clk 0:02:59]} 5. Bb2 {[%clk 0:03:00]}  O-O {[%clk 0:02:59]} 6. Bg2 {[%clk 0:03:01]}  a5 {[%clk 0:03:00]} 7. c4 {[%clk 0:03:00]}  a4 {[%clk 0:03:00]} 8. Nc3 {[%clk 0:02:59]}  a3 {[%clk 0:02:58]} 9. Bc1 {[%clk 0:02:59]}  c5 {[%clk 0:02:58]} 10. O-O {[%clk 0:02:52]}  Nc6 {[%clk 0:02:58]} 11. Nb5 {[%clk 0:02:30]}  cxd4 {[%clk 0:02:21]} 12. Nfxd4 {[%clk 0:02:26]}  Nxd4 {[%clk 0:02:22]} 13. Nxd4 {[%clk 0:02:25]}  Qb6 {[%clk 0:02:20]} 14. Nb5 {[%clk 0:02:08]}  Bf5 {[%clk 0:01:45]} 15. Be3 {[%clk 0:01:55]}  Qa5 {[%clk 0:01:44]} 16. Bd2 {[%clk 0:01:54]}  Qb6 {[%clk 0:01:25]} 17. Be3 {[%clk 0:01:54]}  Qd8 {[%clk 0:01:26]} 18. Bxb7 {[%clk 0:01:46]}  Rb8 {[%clk 0:01:16]} 19. Bg2 {[%clk 0:01:45]}  d5 {[%clk 0:01:05]} 20. Nd4 {[%clk 0:01:36]}  dxc4 {[%clk 0:00:36]} 21. bxc4 {[%clk 0:01:09]}  Be4 {[%clk 0:00:30]} 22. Qa4 {[%clk 0:00:42]}  Bxg2 {[%clk 0:00:28]} 23. Kxg2 {[%clk 0:00:42]}  Ng4 {[%clk 0:00:25]} 24. Rad1 {[%clk 0:00:21]}  Nxe3+ {[%clk 0:00:25]} 25. fxe3 {[%clk 0:00:22]}  Ra8 {[%clk 0:00:21]} 26. Qc6 {[%clk 0:00:20]}  Qa5 {[%clk 0:00:20]} 27. Nb5 {[%clk 0:00:17]}  Qa4 {[%clk 0:00:17]} 28. Nd4 {[%clk 0:00:11]}  Qb4 {[%clk 0:00:13]} 29. Qb5 {[%clk 0:00:10]}  Qc3 {[%clk 0:00:13]} 30. Rd3 {[%clk 0:00:10]}  Qb2 {[%clk 0:00:12]} 31. Qxb2 {[%clk 0:00:06]}  axb2 {[%clk 0:00:12]} 32. Rb3 {[%clk 0:00:05]}  Rxa2 {[%clk 0:00:11]} 33. Rb1 {[%clk 0:00:05]}  Ra4 {[%clk 0:00:10]} 34. c5 {[%clk 0:00:03]}  Rc4 {[%clk 0:00:07]} 35. c6 {[%clk 0:00:03]}  e5 {[%clk 0:00:07]} 36. Nf3 {[%clk 0:00:03]}  Rxc6 {[%clk 0:00:04]} 37. R3xb2 {[%clk 0:00:04]}  h6 {[%clk 0:00:02]} 38. Rb8 {[%clk 0:00:04]}  Rxb8 {[%clk 0:00:02]} 39. Rxb8+ {[%clk 0:00:03]}  Kh7 {[%clk 0:00:03]} 40. e4 {[%clk 0:00:04]}  Rc4 {[%clk 0:00:03]} 41. Rb7 {[%clk 0:00:04]}  Rxe4 {[%clk 0:00:03]} 42. Kf2 {[%clk 0:00:02]}  Kg8 {[%clk 0:00:03]} 43. Rb8+ {[%clk 0:00:02]}  Kh7 {[%clk 0:00:03]} 44. Rb7 {[%clk 0:00:02]}  f5 {[%clk 0:00:04]} 45. h4 {[%clk 0:00:02]}  Kg8 {[%clk 0:00:03]} 46. Rb8+ {[%clk 0:00:02]}  Bf8 {[%clk 0:00:04]} 47. Rb7 {[%clk 0:00:03]}  Bc5+ {[%clk 0:00:04]} 48. Kf1 {[%clk 0:00:03]}  Kf8 {[%clk 0:00:02]} 49. Rc7 {[%clk 0:00:03]}  Bd6 {[%clk 0:00:02]} 50. Rc6 {[%clk 0:00:04]}  Ke7 {[%clk 0:00:03]} 51. Ra6 {[%clk 0:00:04]}  Rc4 {[%clk 0:00:03]} 52. Ra7+ {[%clk 0:00:04]}  Kf6 {[%clk 0:00:02]} 53. Ra6 {[%clk 0:00:04]}  Ke6 {[%clk 0:00:03]} 54. Nd2 {[%clk 0:00:04]}  Rc1+ {[%clk 0:00:03]} 55. Kf2 {[%clk 0:00:04]}  Rc2 {[%clk 0:00:03]} 56. Nf3 {[%clk 0:00:03]}  Kd5 {[%clk 0:00:03]} 57. Ra5+ {[%clk 0:00:03]}  Bc5+ {[%clk 0:00:04]} 58. Kf1 {[%clk 0:00:03]}  Ke4 {[%clk 0:00:04]} 59. Rb5 {[%clk 0:00:01]}  Rc1+ {[%clk 0:00:03]} 60. Kg2 {[%clk 0:00:01]}  Ke3 {[%clk 0:00:03]} 61. Rb3+ {[%clk 0:00:01]}  Kxe2 {[%clk 0:00:03]} 62. Nxe5 {[%clk 0:00:01]}  g5 {[%clk 0:00:01]} 63. hxg5 {[%clk 0:00:01]}  hxg5 {[%clk 0:00:02]} 64. Rb2+ {[%clk 0:00:02]}  Ke3 {[%clk 0:00:03]} 65. Nf3 {[%clk 0:00:01]}  g4 {[%clk 0:00:03]} 66. Nh4 {[%clk 0:00:02]}  Ke4 {[%clk 0:00:03]} 67. Re2+ {[%clk 0:00:03]}  Kd3 {[%clk 0:00:02]} 68. Re5 {[%clk 0:00:02]}  Rc2+ {[%clk 0:00:02]} 69. Kh1 {[%clk 0:00:02]}  Bd4 {[%clk 0:00:02]} 70. Rxf5 {[%clk 0:00:03]}  Bf2 {[%clk 0:00:02]} 71. Kg2 {[%clk 0:00:01]}  Be1+ {[%clk 0:00:02]} 72. Kg1 {[%clk 0:00:02]}  Bxg3 {[%clk 0:00:03]} 73. Ng2 {[%clk 0:00:02]}  Rc1+ {[%clk 0:00:03]} 74. Rf1 {[%clk 0:00:03]}  Bh2+ {[%clk 0:00:03]} 75. Kxh2 {[%clk 0:00:02]}  Rxf1 {[%clk 0:00:04]} 76. Kg3 {[%clk 0:00:03]}  Rg1 {[%clk 0:00:02]} 77. Kf2 {[%clk 0:00:04]}  Ra1 {[%clk 0:00:03]} 78. Kg3 {[%clk 0:00:04]}  Ra4 {[%clk 0:00:03]} 79. Nf4+ {[%clk 0:00:04]}  Ke4 {[%clk 0:00:04]} 80. Kxg4 {[%clk 0:00:04]}  Ke3 {[%clk 0:00:04]} 0-1


[Site "https://www.chess.com"]

[Event "Titled Tuesday Blitz September 13 Late 2022"]
[White "Janaszak, Dawid"]
[Black "Domingo Nunez, Ruben"]
[WhiteFideId "1119206"]
[BlackFideId "22245570"]
[WhiteElo "2165"]
[BlackElo "2406"]
[Result "1-0"]
[Round "07"]
[TimeControl "180+1"]
[Date "2022.09.13"]
[WhiteClock "0:00:49"]
[BlackClock "0:00:07"]

1. d4 {[%clk 0:03:00]}  g6 {[%clk 0:02:58]} 2. e4 {[%clk 0:02:56]}  Bg7 {[%clk 0:02:59]} 3. c3 {[%clk 0:02:56]}  c6 {[%clk 0:02:58]} 4. Nf3 {[%clk 0:02:53]}  d5 {[%clk 0:02:59]} 5. Nbd2 {[%clk 0:02:52]}  dxe4 {[%clk 0:03:00]} 6. Nxe4 {[%clk 0:02:53]}  Nf6 {[%clk 0:03:01]} 7. Bd3 {[%clk 0:02:53]}  O-O {[%clk 0:03:01]} 8. Qe2 {[%clk 0:02:53]}  a5 {[%clk 0:03:02]} 9. O-O {[%clk 0:02:52]}  Na6 {[%clk 0:03:03]} 10. Re1 {[%clk 0:02:52]}  Nc7 {[%clk 0:03:04]} 11. Bf4 {[%clk 0:02:51]}  Ncd5 {[%clk 0:03:04]} 12. Be5 {[%clk 0:02:52]}  a4 {[%clk 0:03:02]} 13. a3 {[%clk 0:02:51]}  b6 {[%clk 0:03:02]} 14. h3 {[%clk 0:02:50]}  Bf5 {[%clk 0:02:47]} 15. Rad1 {[%clk 0:02:47]}  Qd7 {[%clk 0:02:47]} 16. Bh2 {[%clk 0:02:46]}  Qb7 {[%clk 0:02:46]} 17. Nxf6+ {[%clk 0:02:41]}  Bxf6 {[%clk 0:02:42]} 18. Bxf5 {[%clk 0:02:41]}  gxf5 {[%clk 0:02:43]} 19. Qd3 {[%clk 0:02:40]}  e6 {[%clk 0:02:42]} 20. Be5 {[%clk 0:02:40]}  Qe7 {[%clk 0:02:31]} 21. Qd2 {[%clk 0:02:37]}  Rfd8 {[%clk 0:02:26]} 22. Qh6 {[%clk 0:02:35]}  Bxe5 {[%clk 0:02:18]} 23. Nxe5 {[%clk 0:02:34]}  Rac8 {[%clk 0:02:11]} 24. Rd3 {[%clk 0:02:33]}  f4 {[%clk 0:01:49]} 25. c4 {[%clk 0:02:22]}  Qf6 {[%clk 0:01:44]} 26. Qh5 {[%clk 0:02:03]}  Ne7 {[%clk 0:01:43]} 27. Qg4+ {[%clk 0:01:41]}  Kh8 {[%clk 0:01:18]} 28. Re4 {[%clk 0:01:38]}  Ng6 {[%clk 0:00:46]} 29. Nxg6+ {[%clk 0:01:37]}  hxg6 {[%clk 0:00:32]} 30. Rxf4 {[%clk 0:01:34]}  Qe7 {[%clk 0:00:32]} 31. Rdf3 {[%clk 0:01:33]}  Rc7 {[%clk 0:00:21]} 32. h4 {[%clk 0:01:33]}  c5 {[%clk 0:00:15]} 33. h5 {[%clk 0:01:32]}  g5 {[%clk 0:00:15]} 34. Rf6 {[%clk 0:01:32]}  Rg8 {[%clk 0:00:13]} 35. Rxf7 {[%clk 0:01:10]}  Qxf7 {[%clk 0:00:13]} 36. Rxf7 {[%clk 0:01:11]}  Rxf7 {[%clk 0:00:13]} 37. Qxe6 {[%clk 0:01:12]}  Rh7 {[%clk 0:00:13]} 38. h6 {[%clk 0:01:10]}  Rf8 {[%clk 0:00:08]} 39. d5 {[%clk 0:01:05]}  Rhf7 {[%clk 0:00:07]} 40. f3 {[%clk 0:01:05]}  Kh7 {[%clk 0:00:08]} 41. d6 {[%clk 0:01:04]}  Rf6 {[%clk 0:00:08]} 42. Qe4+ {[%clk 0:01:04]}  Kxh6 {[%clk 0:00:09]} 43. d7 {[%clk 0:01:04]}  Rd8 {[%clk 0:00:05]} 44. Qe7 {[%clk 0:01:01]}  Rff8 {[%clk 0:00:06]} 45. Kh2 {[%clk 0:00:55]}  Kg6 {[%clk 0:00:06]} 46. Kg3 {[%clk 0:00:54]}  Kf5 {[%clk 0:00:07]} 47. Kf2 {[%clk 0:00:53]}  g4 {[%clk 0:00:06]} 48. Ke3 {[%clk 0:00:51]}  gxf3 {[%clk 0:00:06]} 49. gxf3 {[%clk 0:00:52]}  Kg6 {[%clk 0:00:06]} 50. f4 {[%clk 0:00:51]}  Kf5 {[%clk 0:00:07]} 51. Kf3 {[%clk 0:00:48]}  Rh8 {[%clk 0:00:07]} 52. Qf7# {[%clk 0:00:49]} 1-0


[Site "https://www.chess.com"]

[Event "Titled Tuesday Blitz September 13 Late 2022"]
[White "Jobava, Baadur"]
[Black "Andreikin, Dmitry"]
[WhiteFideId "13601520"]
[BlackFideId "4158814"]
[WhiteElo "2582"]
[BlackElo "2736"]
[Result "0-1"]
[Round "07"]
[TimeControl "180+1"]
[Date "2022.09.13"]
[WhiteClock "0:00:08"]
[BlackClock "0:00:03"]

1. e4 {[%clk 0:03:00]}  e6 {[%clk 0:03:00]} 2. d4 {[%clk 0:03:00]}  d5 {[%clk 0:03:00]} 3. exd5 {[%clk 0:03:01]}  exd5 {[%clk 0:03:00]} 4. Nf3 {[%clk 0:03:02]}  Nf6 {[%clk 0:03:00]} 5. Bd3 {[%clk 0:03:03]}  Bd6 {[%clk 0:02:59]} 6. O-O {[%clk 0:03:04]}  O-O {[%clk 0:02:59]} 7. h3 {[%clk 0:03:04]}  h6 {[%clk 0:02:53]} 8. Re1 {[%clk 0:03:04]}  Re8 {[%clk 0:02:51]} 9. Rxe8+ {[%clk 0:03:04]}  Qxe8 {[%clk 0:02:51]} 10. Nc3 {[%clk 0:03:05]}  c6 {[%clk 0:02:51]} 11. Ne2 {[%clk 0:03:06]}  Nbd7 {[%clk 0:02:46]} 12. Bf4 {[%clk 0:03:06]}  Qe7 {[%clk 0:02:46]} 13. Qd2 {[%clk 0:03:06]}  Ne4 {[%clk 0:02:35]} 14. Qe3 {[%clk 0:03:06]}  Ndf6 {[%clk 0:02:29]} 15. Re1 {[%clk 0:03:05]}  Bxf4 {[%clk 0:02:20]} 16. Nxf4 {[%clk 0:03:05]}  Qb4 {[%clk 0:02:19]} 17. c4 {[%clk 0:02:57]}  Bf5 {[%clk 0:02:07]} 18. b3 {[%clk 0:02:37]}  Re8 {[%clk 0:02:02]} 19. Ne5 {[%clk 0:02:35]}  c5 {[%clk 0:01:45]} 20. Bxe4 {[%clk 0:01:52]}  cxd4 {[%clk 0:01:39]} 21. Ned3 {[%clk 0:00:51]}  dxe3 {[%clk 0:01:20]} 22. Nxb4 {[%clk 0:00:51]}  exf2+ {[%clk 0:01:17]} 23. Kxf2 {[%clk 0:00:52]}  Nxe4+ {[%clk 0:01:15]} 24. Kg1 {[%clk 0:00:52]}  dxc4 {[%clk 0:01:15]} 25. bxc4 {[%clk 0:00:53]}  Nd6 {[%clk 0:01:08]} 26. Rxe8+ {[%clk 0:00:40]}  Nxe8 {[%clk 0:01:09]} 27. Nfd5 {[%clk 0:00:36]}  Kf8 {[%clk 0:01:06]} 28. c5 {[%clk 0:00:33]}  Be6 {[%clk 0:01:05]} 29. Nc3 {[%clk 0:00:27]}  Nc7 {[%clk 0:00:56]} 30. Kf2 {[%clk 0:00:26]}  Ke7 {[%clk 0:00:56]} 31. Ke3 {[%clk 0:00:25]}  g5 {[%clk 0:00:54]} 32. Kd4 {[%clk 0:00:24]}  f6 {[%clk 0:00:45]} 33. a4 {[%clk 0:00:23]}  Bd7 {[%clk 0:00:42]} 34. a5 {[%clk 0:00:22]}  Ke6 {[%clk 0:00:38]} 35. Kc4 {[%clk 0:00:16]}  f5 {[%clk 0:00:36]} 36. g3 {[%clk 0:00:15]}  Bc6 {[%clk 0:00:27]} 37. Nc2 {[%clk 0:00:12]}  Bg2 {[%clk 0:00:25]} 38. Nd4+ {[%clk 0:00:12]}  Ke5 {[%clk 0:00:25]} 39. h4 {[%clk 0:00:13]}  Bf1+ {[%clk 0:00:24]} 40. Nde2 {[%clk 0:00:13]}  f4 {[%clk 0:00:19]} 41. gxf4+ {[%clk 0:00:14]}  gxf4 {[%clk 0:00:19]} 42. Kb3 {[%clk 0:00:12]}  f3 {[%clk 0:00:18]} 43. Ng3 {[%clk 0:00:12]}  Bd3 {[%clk 0:00:17]} 44. Nd1 {[%clk 0:00:12]}  Nd5 {[%clk 0:00:17]} 45. Nf2 {[%clk 0:00:12]}  Bh7 {[%clk 0:00:15]} 46. Kc4 {[%clk 0:00:11]}  Kf4 {[%clk 0:00:12]} 47. Nh5+ {[%clk 0:00:11]}  Ke5 {[%clk 0:00:12]} 48. Ng3 {[%clk 0:00:09]}  Ne3+ {[%clk 0:00:12]} 49. Kb5 {[%clk 0:00:09]}  Nf5 {[%clk 0:00:10]} 50. Nxf5 {[%clk 0:00:03]}  Bxf5 {[%clk 0:00:11]} 51. a6 {[%clk 0:00:03]}  bxa6+ {[%clk 0:00:07]} 52. Kxa6 {[%clk 0:00:04]}  Kf4 {[%clk 0:00:07]} 53. Kxa7 {[%clk 0:00:02]}  Kg3 {[%clk 0:00:08]} 54. Nd1 {[%clk 0:00:03]}  f2 {[%clk 0:00:07]} 55. Ne3 {[%clk 0:00:03]}  Kf3 {[%clk 0:00:05]} 56. Nxf5 {[%clk 0:00:03]}  f1=Q {[%clk 0:00:05]} 57. Nd6 {[%clk 0:00:01]}  Qa1+ {[%clk 0:00:04]} 58. Kb6 {[%clk 0:00:02]}  Qd4 {[%clk 0:00:03]} 59. Nb5 {[%clk 0:00:03]}  Qe3 {[%clk 0:00:03]} 60. h5 {[%clk 0:00:01]}  Kg4 {[%clk 0:00:03]} 61. Nd6 {[%clk 0:00:02]}  Kxh5 {[%clk 0:00:03]} 62. Kb5 {[%clk 0:00:03]}  Qe5 {[%clk 0:00:02]} 63. Nc4 {[%clk 0:00:04]}  Qb8+ {[%clk 0:00:02]} 64. Nb6 {[%clk 0:00:04]}  Kg4 {[%clk 0:00:02]} 65. c6 {[%clk 0:00:05]}  h5 {[%clk 0:00:03]} 66. Kc5 {[%clk 0:00:05]}  h4 {[%clk 0:00:03]} 67. Nd7 {[%clk 0:00:06]}  Qc7 {[%clk 0:00:03]} 68. Nf6+ {[%clk 0:00:06]}  Kf3 {[%clk 0:00:04]} 69. Nd5 {[%clk 0:00:07]}  Qc8 {[%clk 0:00:04]} 70. Nb6 {[%clk 0:00:07]}  Qf8+ {[%clk 0:00:03]} 71. Kb5 {[%clk 0:00:07]}  h3 {[%clk 0:00:04]} 72. c7 {[%clk 0:00:07]}  h2 {[%clk 0:00:04]} 73. Nd7 {[%clk 0:00:08]}  Qc8 {[%clk 0:00:03]} 74. Nb6 {[%clk 0:00:08]}  Qxc7 {[%clk 0:00:03]} 0-1


[Site "https://www.chess.com"]

[Event "Titled Tuesday Blitz September 13 Late 2022"]
[White "Karas, Marek"]
[Black "Mikhailov, Viacheslav"]
[WhiteFideId "14928558"]
[BlackFideId "4187369"]
[WhiteElo "2272"]
[BlackElo "2381"]
[Result "0-1"]
[Round "07"]
[TimeControl "180+1"]
[Date "2022.09.13"]
[WhiteClock "0:01:18"]
[BlackClock "0:01:10"]

1. c3 {[%clk 0:02:59]}  Nf6 {[%clk 0:02:59]} 2. d4 {[%clk 0:02:59]}  g6 {[%clk 0:02:59]} 3. Nf3 {[%clk 0:02:59]}  Bg7 {[%clk 0:02:59]} 4. Bg5 {[%clk 0:02:59]}  O-O {[%clk 0:03:00]} 5. Nbd2 {[%clk 0:02:59]}  d6 {[%clk 0:03:00]} 6. e4 {[%clk 0:02:54]}  Bg4 {[%clk 0:02:56]} 7. Bd3 {[%clk 0:02:50]}  c5 {[%clk 0:02:54]} 8. h3 {[%clk 0:02:47]}  Bxf3 {[%clk 0:02:54]} 9. Nxf3 {[%clk 0:02:47]}  cxd4 {[%clk 0:02:54]} 10. cxd4 {[%clk 0:02:46]}  Nc6 {[%clk 0:02:55]} 11. O-O {[%clk 0:02:43]}  Qb6 {[%clk 0:02:55]} 12. d5 {[%clk 0:02:40]}  Nd4 {[%clk 0:02:41]} 13. Rb1 {[%clk 0:02:26]}  Nxf3+ {[%clk 0:02:38]} 14. Qxf3 {[%clk 0:02:26]}  h6 {[%clk 0:02:36]} 15. Be3 {[%clk 0:02:21]}  Qa5 {[%clk 0:02:35]} 16. a3 {[%clk 0:02:19]}  Nd7 {[%clk 0:02:35]} 17. Qe2 {[%clk 0:02:12]}  Rfc8 {[%clk 0:02:34]} 18. Rfc1 {[%clk 0:02:09]}  a6 {[%clk 0:02:29]} 19. Rxc8+ {[%clk 0:02:04]}  Rxc8 {[%clk 0:02:29]} 20. Rc1 {[%clk 0:02:04]}  Rxc1+ {[%clk 0:02:29]} 21. Bxc1 {[%clk 0:02:05]}  Ne5 {[%clk 0:02:18]} 22. b4 {[%clk 0:01:45]}  Qa4 {[%clk 0:01:39]} 23. Qc2 {[%clk 0:01:38]}  Qxc2 {[%clk 0:01:36]} 24. Bxc2 {[%clk 0:01:39]}  Nc4 {[%clk 0:01:36]} 25. Bd3 {[%clk 0:01:31]}  Bb2 {[%clk 0:01:30]} 26. Bxc4 {[%clk 0:01:30]}  Bxc1 {[%clk 0:01:29]} 27. a4 {[%clk 0:01:30]}  Kf8 {[%clk 0:01:28]} 28. b5 {[%clk 0:01:29]}  a5 {[%clk 0:01:23]} 29. b6 {[%clk 0:01:22]}  Ba3 {[%clk 0:01:23]} 30. Ba6 {[%clk 0:01:18]}  Bc5 {[%clk 0:01:23]} 31. Bxb7 {[%clk 0:01:18]}  Bxb6 {[%clk 0:01:24]} 32. Bc6 {[%clk 0:01:19]}  f5 {[%clk 0:01:20]} 33. exf5 {[%clk 0:01:17]}  gxf5 {[%clk 0:01:21]} 34. Bd7 {[%clk 0:01:18]}  f4 {[%clk 0:01:20]} 35. Kf1 {[%clk 0:01:18]}  Kg7 {[%clk 0:01:21]} 36. Ke2 {[%clk 0:01:18]}  Kf6 {[%clk 0:01:22]} 37. Kf3 {[%clk 0:01:18]}  Ke5 {[%clk 0:01:22]} 38. Be6 {[%clk 0:01:18]}  Bc5 {[%clk 0:01:21]} 39. g3 {[%clk 0:01:18]}  fxg3 {[%clk 0:01:21]} 40. fxg3 {[%clk 0:01:19]}  Kf6 {[%clk 0:01:18]} 41. Kg4 {[%clk 0:01:19]}  Kg7 {[%clk 0:01:18]} 42. Kf5 {[%clk 0:01:18]}  Bf2 {[%clk 0:01:17]} 43. g4 {[%clk 0:01:18]}  Be1 {[%clk 0:01:17]} 44. Bd7 {[%clk 0:01:18]}  Bf2 {[%clk 0:01:17]} 45. Be6 {[%clk 0:01:19]}  Be1 {[%clk 0:01:17]} 46. g5 {[%clk 0:01:18]}  hxg5 {[%clk 0:01:17]} 47. Kxg5 {[%clk 0:01:19]}  Bd2+ {[%clk 0:01:16]} 48. Kf5 {[%clk 0:01:19]}  Bc3 {[%clk 0:01:12]} 49. Bd7 {[%clk 0:01:19]}  Bf6 {[%clk 0:01:12]} 50. Be8 {[%clk 0:01:19]}  Kh6 {[%clk 0:01:12]} 51. Ke6 {[%clk 0:01:18]}  Kg7 {[%clk 0:01:11]} 52. Kd7 {[%clk 0:01:18]}  Kh6 {[%clk 0:01:12]} 53. Kc6 {[%clk 0:01:18]}  Kg7 {[%clk 0:01:12]} 54. Bd7 {[%clk 0:01:18]}  Bc3 {[%clk 0:01:12]} 55. Be6 {[%clk 0:01:19]}  Kf6 {[%clk 0:01:12]} 56. Kd7 {[%clk 0:01:19]}  Bb4 {[%clk 0:01:12]} 57. h4 {[%clk 0:01:19]}  Be1 {[%clk 0:01:11]} 58. h5 {[%clk 0:01:19]}  Bd2 {[%clk 0:01:12]} 59. Kc6 {[%clk 0:01:18]}  Kg7 {[%clk 0:01:11]} 60. Kb5 {[%clk 0:01:18]}  Kh6 {[%clk 0:01:10]} 61. Bf7 {[%clk 0:01:18]}  Be1 {[%clk 0:01:10]} 62. Kc4 {[%clk 0:01:18]}  Kg7 {[%clk 0:01:10]} 63. Kd3 {[%clk 0:01:18]}  Kxf7 {[%clk 0:01:10]} 0-1


[Site "https://www.chess.com"]

[Event "Titled Tuesday Blitz September 13 Late 2022"]
[White "Kravtsiv, Martyn"]
[Black "Pranav, V"]
[WhiteFideId "14113147"]
[BlackFideId "25060783"]
[WhiteElo "2694"]
[BlackElo "2390"]
[Result "1-0"]
[Round "07"]
[TimeControl "180+1"]
[Date "2022.09.13"]
[WhiteClock "0:00:09"]
[BlackClock "0:00:05"]

1. e4 {[%clk 0:03:00]}  e5 {[%clk 0:02:59]} 2. Nf3 {[%clk 0:03:01]}  Nc6 {[%clk 0:02:58]} 3. Nc3 {[%clk 0:03:01]}  Nf6 {[%clk 0:02:58]} 4. a4 {[%clk 0:03:01]}  g6 {[%clk 0:02:46]} 5. Bc4 {[%clk 0:03:00]}  Bg7 {[%clk 0:02:46]} 6. d3 {[%clk 0:03:00]}  O-O {[%clk 0:02:47]} 7. Be3 {[%clk 0:02:57]}  d6 {[%clk 0:02:48]} 8. h3 {[%clk 0:02:56]}  Be6 {[%clk 0:02:46]} 9. Bxe6 {[%clk 0:02:55]}  fxe6 {[%clk 0:02:47]} 10. Ne2 {[%clk 0:02:55]}  Nh5 {[%clk 0:02:42]} 11. c3 {[%clk 0:02:38]}  Qe8 {[%clk 0:02:35]} 12. a5 {[%clk 0:02:30]}  a6 {[%clk 0:02:34]} 13. Qb3 {[%clk 0:02:29]}  Nd8 {[%clk 0:02:32]} 14. Nd2 {[%clk 0:02:13]}  h6 {[%clk 0:02:27]} 15. g3 {[%clk 0:02:12]}  Kh7 {[%clk 0:02:26]} 16. f3 {[%clk 0:01:32]}  c6 {[%clk 0:02:13]} 17. O-O-O {[%clk 0:01:28]}  d5 {[%clk 0:02:12]} 18. Bc5 {[%clk 0:01:15]}  Rf7 {[%clk 0:02:11]} 19. h4 {[%clk 0:01:14]}  Nf6 {[%clk 0:02:05]} 20. g4 {[%clk 0:01:08]}  Nd7 {[%clk 0:02:05]} 21. Be3 {[%clk 0:01:08]}  Qe7 {[%clk 0:01:46]} 22. Kb1 {[%clk 0:01:04]}  Qd6 {[%clk 0:01:44]} 23. Rhf1 {[%clk 0:00:52]}  c5 {[%clk 0:01:35]} 24. g5 {[%clk 0:00:41]}  h5 {[%clk 0:01:31]} 25. f4 {[%clk 0:00:41]}  d4 {[%clk 0:01:26]} 26. Nc4 {[%clk 0:00:40]}  Qc7 {[%clk 0:01:21]} 27. Bc1 {[%clk 0:00:38]}  Nc6 {[%clk 0:01:17]} 28. f5 {[%clk 0:00:33]}  exf5 {[%clk 0:01:08]} 29. exf5 {[%clk 0:00:21]}  Rxf5 {[%clk 0:01:08]} 30. Rxf5 {[%clk 0:00:20]}  gxf5 {[%clk 0:01:09]} 31. Ng3 {[%clk 0:00:21]}  Rf8 {[%clk 0:00:46]} 32. Nxh5 {[%clk 0:00:19]}  Bh8 {[%clk 0:00:45]} 33. Rf1 {[%clk 0:00:19]}  dxc3 {[%clk 0:00:40]} 34. bxc3 {[%clk 0:00:18]}  Na7 {[%clk 0:00:27]} 35. Ng3 {[%clk 0:00:17]}  Nb5 {[%clk 0:00:27]} 36. Nxf5 {[%clk 0:00:16]}  e4 {[%clk 0:00:26]} 37. Bd2 {[%clk 0:00:13]}  Qh2 {[%clk 0:00:20]} 38. Qd1 {[%clk 0:00:13]}  Rxf5 {[%clk 0:00:12]} 39. Qh5+ {[%clk 0:00:11]}  Kg8 {[%clk 0:00:05]} 40. Qg6+ {[%clk 0:00:09]}  Bg7 {[%clk 0:00:05]} 41. Qxf5 {[%clk 0:00:09]}  Ne5 {[%clk 0:00:04]} 42. Nxe5 {[%clk 0:00:06]}  Qxd2 {[%clk 0:00:03]} 43. Qf7+ {[%clk 0:00:06]}  Kh7 {[%clk 0:00:04]} 44. Qh5+ {[%clk 0:00:07]}  Kg8 {[%clk 0:00:04]} 45. Qe8+ {[%clk 0:00:07]}  Kh7 {[%clk 0:00:04]} 46. Qg6+ {[%clk 0:00:08]}  Kg8 {[%clk 0:00:05]} 47. Rf8+ {[%clk 0:00:08]}  Kxf8 {[%clk 0:00:05]} 48. Qf7# {[%clk 0:00:09]} 1-0


[Site "https://www.chess.com"]

[Event "Titled Tuesday Blitz September 13 Late 2022"]
[White "Makarian, Rudik"]
[Black "Bayo Milagro, Alvaro"]
[WhiteFideId "44105681"]
[BlackFideId "22275240"]
[WhiteElo "2410"]
[BlackElo "2270"]
[Result "1-0"]
[Round "07"]
[TimeControl "180+1"]
[Date "2022.09.13"]
[WhiteClock "0:02:05"]
[BlackClock "0:00:54"]

1. b3 {[%clk 0:03:00]}  d5 {[%clk 0:02:57]} 2. Bb2 {[%clk 0:03:01]}  Bg4 {[%clk 0:02:58]} 3. Nf3 {[%clk 0:03:01]}  Nd7 {[%clk 0:02:55]} 4. e3 {[%clk 0:03:00]}  e6 {[%clk 0:02:55]} 5. Be2 {[%clk 0:03:00]}  Ngf6 {[%clk 0:02:55]} 6. O-O {[%clk 0:03:01]}  c6 {[%clk 0:02:56]} 7. c4 {[%clk 0:02:59]}  Be7 {[%clk 0:02:55]} 8. d4 {[%clk 0:03:00]}  O-O {[%clk 0:02:55]} 9. Nbd2 {[%clk 0:03:00]}  Bd6 {[%clk 0:02:51]} 10. h3 {[%clk 0:03:01]}  Bh5 {[%clk 0:02:51]} 11. Ne5 {[%clk 0:03:00]}  Bxe2 {[%clk 0:02:51]} 12. Qxe2 {[%clk 0:03:01]}  a5 {[%clk 0:02:50]} 13. a4 {[%clk 0:02:59]}  Nb8 {[%clk 0:02:38]} 14. e4 {[%clk 0:02:58]}  Bxe5 {[%clk 0:02:31]} 15. dxe5 {[%clk 0:02:58]}  Nxe4 {[%clk 0:02:32]} 16. Nxe4 {[%clk 0:02:59]}  dxe4 {[%clk 0:02:32]} 17. Qxe4 {[%clk 0:02:59]}  Na6 {[%clk 0:02:32]} 18. Rad1 {[%clk 0:02:59]}  Qe7 {[%clk 0:02:32]} 19. Rd6 {[%clk 0:02:58]}  Rfd8 {[%clk 0:02:28]} 20. Ba3 {[%clk 0:02:57]}  Nb4 {[%clk 0:02:25]} 21. Bxb4 {[%clk 0:02:56]}  axb4 {[%clk 0:02:25]} 22. c5 {[%clk 0:02:57]}  Qg5 {[%clk 0:02:20]} 23. Rfd1 {[%clk 0:02:53]}  Re8 {[%clk 0:02:14]} 24. Rd7 {[%clk 0:02:50]}  Rad8 {[%clk 0:02:08]} 25. f4 {[%clk 0:02:42]}  Rxd7 {[%clk 0:01:58]} 26. Rxd7 {[%clk 0:02:43]}  Qg3 {[%clk 0:01:58]} 27. Rd3 {[%clk 0:02:40]}  Qh4 {[%clk 0:01:55]} 28. Qxb4 {[%clk 0:02:34]}  h6 {[%clk 0:01:48]} 29. Kh2 {[%clk 0:02:32]}  Qf2 {[%clk 0:01:47]} 30. Qd4 {[%clk 0:02:30]}  Qe2 {[%clk 0:01:39]} 31. Rg3 {[%clk 0:02:27]}  Qf1 {[%clk 0:01:28]} 32. Rf3 {[%clk 0:02:22]}  Qc1 {[%clk 0:01:21]} 33. b4 {[%clk 0:02:17]}  Ra8 {[%clk 0:01:19]} 34. a5 {[%clk 0:02:14]}  Kf8 {[%clk 0:01:13]} 35. f5 {[%clk 0:02:12]}  Re8 {[%clk 0:01:09]} 36. f6 {[%clk 0:02:11]}  g6 {[%clk 0:01:08]} 37. Rf2 {[%clk 0:02:07]}  Kg8 {[%clk 0:01:02]} 38. Qd2 {[%clk 0:02:06]}  Qa1 {[%clk 0:00:53]} 39. Qxh6 {[%clk 0:02:05]}  Qxe5+ {[%clk 0:00:54]} 40. g3 {[%clk 0:02:05]} 1-0


[Site "https://www.chess.com"]